bitfinex/quotes_BTCUSD_20240723
["timestamp","ask_amount","ask_price","bid_price","bid_amount"]
[1721737416307,0.00845,66772.0,66771.0,0.5705248]
[1721737416521,0.00845,66772.0,66771.0,0.40423936]
[1721737417163,0.00845,66772.0,66771.0,0.57107029]
[1721737417812,0.00845,66772.0,66771.0,0.57160938]
[1721737420955,0.00845,66772.0,66771.0,0.27983345]
[1721737421121,0.00845,66772.0,66771.0,0.57198078]
[1721737422331,0.4116306,66772.0,66771.0,0.51048078]
[1721737422588,0.8609196,66772.0,66771.0,0.34274041]
[1721737422801,0.8609196,66772.0,66771.0,0.1957205]
[1721737422802,1.1604456,66772.0,66771.0,0.1957205]
[1721737422941,1.1604456,66772.0,66771.0,0.07131354]
[1721737422942,1.2604456,66772.0,66771.0,0.07131354]
[1721737423167,1.2604456,66772.0,66771.0,0.05731354]
[1721737423560,1.2604456,66772.0,66771.0,0.04331354]
[1721737423958,1.39479939,66772.0,66771.0,0.04331354]
[1721737424163,1.07338376,66772.0,66771.0,0.04331354]
[1721737424367,0.94841118,66772.0,66771.0,0.05631354]
[1721737425375,0.94841118,66772.0,66771.0,0.06731354]
[1721737425950,0.94841118,66772.0,66771.0,0.05631354]
[1721737426124,1.08848087,66772.0,66771.0,0.04331354]
[1721737426950,1.08948087,66772.0,66771.0,0.04331354]
[1721737427148,1.08848087,66772.0,66771.0,0.04331354]
[1721737427585,1.08848087,66772.0,66771.0,0.04431354]
[1721737428472,1.08748087,66772.0,66771.0,0.04431354]
[1721737430024,0.78795487,66772.0,66771.0,0.04431354]
[1721737432126,0.89976052,66772.0,66771.0,0.04431354]
[1721737432514,0.78795487,66772.0,66771.0,0.04431354]
[1721737432689,0.31140226,66772.0,66771.0,0.19133345]
[1721737432892,0.10845,66772.0,66771.0,0.19133345]
[1721737433110,0.10845,66772.0,66771.0,0.19789288]
[1721737433111,0.00845,66772.0,66771.0,0.19789288]
[1721737433523,0.00845,66772.0,66771.0,0.32231395]
[1721737433846,0.00845,66772.0,66771.0,0.38281395]
[1721737434454,0.00845,66772.0,66771.0,0.46291395]
[1721737434661,0.00845,66772.0,66771.0,0.46891395]
[1721737435732,0.00845,66772.0,66771.0,0.47291395]
[1721737436135,0.00845,66772.0,66771.0,0.46891395]
[1721737436350,0.00845,66772.0,66771.0,0.4688992]
[1721737436555,0.00845,66772.0,66771.0,0.4628992]
[1721737436759,0.00845,66772.0,66771.0,0.4908992]
[1721737437144,0.00845,66772.0,66771.0,0.4768992]
[1721737437550,0.00845,66772.0,66771.0,0.4908992]
[1721737439469,0.00845,66772.0,66771.0,0.49089886]
[1721737442761,0.00845,66772.0,66771.0,0.36649288]
[1721737442973,0.00845,66772.0,66771.0,0.49089738]
[1721737445812,0.00845,66772.0,66771.0,0.49089525]
[1721737449090,0.00845,66772.0,66771.0,0.40979525]
[1721737449499,0.00845,66772.0,66771.0,0.48829525]
[1721737451769,0.00845,66772.0,66771.0,0.40979525]
[1721737452187,0.00845,66772.0,66771.0,0.40979946]
[1721737455417,0.00845,66772.0,66771.0,0.40980001]
[1721737458623,0.00845,66772.0,66771.0,0.40980356]
[1721737458976,0.00845,66772.0,66771.0,0.28539288]
[1721737459154,0.00845,66772.0,66771.0,0.40980349]
[1721737461792,0.00845,66772.0,66771.0,0.40980421]
[1721737462935,0.55428501,66772.0,66771.0,0.2022843]
[1721737463140,0.55428501,66772.0,66771.0,0.07787297]
[1721737463141,0.85381101,66772.0,66771.0,0.07787297]
[1721737463297,0.95381101,66772.0,66771.0,0.07787297]
[1721737463942,0.95381101,66772.0,66771.0,0.06387297]
[1721737464179,0.95381101,66772.0,66771.0,0.07487297]
[1721737464580,0.932665,66772.0,66771.0,0.06087297]
[1721737464832,0.94218182,66772.0,66771.0,0.04987297]
[1721737465040,0.94218182,66772.0,66771.0,0.06287297]
[1721737465446,0.94218182,66772.0,66771.0,0.04987297]
[1721737465824,0.94218182,66772.0,66771.0,0.05087297]
[1721737466372,1.05024904,66772.0,66771.0,0.05087297]
[1721737466787,0.94218182,66772.0,66771.0,0.05087297]
[1721737469930,1.24170782,66772.0,66771.0,0.05087297]
[1721737471228,0.94218182,66772.0,66771.0,0.05087297]
[1721737471695,0.2329422,66772.0,66771.0,0.19689288]
[1721737472169,0.2369422,66772.0,66771.0,0.19689288]
[1721737472395,0.22900931,66772.0,66771.0,0.19689288]
[1721737472598,0.22600931,66772.0,66771.0,0.19689288]
[1721737472810,0.11403393,66772.0,66771.0,0.19689288]
[1721737473084,0.11403393,66772.0,66771.0,0.19789288]
[1721737473542,0.12003393,66772.0,66771.0,0.19789288]
[1721737473775,0.26979693,66772.0,66771.0,0.19789288]
[1721737474009,0.26979693,66772.0,66771.0,0.19689288]
[1721737474010,0.33095836,66772.0,66771.0,0.19689288]
[1721737474238,0.11403393,66772.0,66771.0,0.19689288]
[1721737474468,0.26379693,66772.0,66771.0,0.20089288]
[1721737474698,0.34717529,66772.0,66771.0,0.20089288]
[1721737474925,0.56332293,66772.0,66771.0,0.05387297]
[1721737475354,0.11403393,66772.0,66771.0,0.20489288]
[1721737475760,0.26379693,66772.0,66771.0,0.20089288]
[1721737475975,0.11403393,66772.0,66771.0,0.20089288]
[1721737476179,0.26379693,66772.0,66771.0,0.20689288]
[1721737476617,0.56332293,66772.0,66771.0,0.20289288]
[1721737476998,1.00647134,66772.0,66771.0,0.05787297]
[1721737477173,1.08767134,66772.0,66771.0,0.05787297]
[1721737477801,1.08767134,66772.0,66771.0,0.05587297]
[1721737478000,1.08767134,66772.0,66771.0,0.05987297]
[1721737478001,1.38719734,66772.0,66771.0,0.05987297]
[1721737478886,1.38719734,66772.0,66771.0,0.05387297]
[1721737479472,1.38719734,66772.0,66771.0,0.05587297]
[1721737479648,1.38719734,66772.0,66771.0,0.05487297]
[1721737480083,1.39019734,66772.0,66771.0,0.05487297]
[1721737480296,1.39019734,66772.0,66771.0,0.04987297]
[1721737480705,1.39419734,66772.0,66771.0,0.04987297]
[1721737480904,1.45019734,66772.0,66771.0,0.05087297]
[1721737481927,1.40019734,66772.0,66771.0,0.05087297]
[1721737482520,1.45019734,66772.0,66771.0,0.05087297]
[1721737482725,1.40019734,66772.0,66771.0,0.05087297]
[1721737482930,0.95104893,66772.0,66771.0,0.04987297]
[1721737483142,0.37571427,66772.0,66771.0,0.04987297]
[1721737483346,0.68124027,66772.0,66771.0,0.05087297]
[1721737483549,0.56932293,66772.0,66771.0,0.05087297]
[1721737483837,0.56932293,66772.0,66771.0,0.04987297]
[1721737483838,0.67523811,66772.0,66771.0,0.04987297]
[1721737484174,0.78623892,66772.0,66771.0,0.04987297]
[1721737484534,0.67432374,66772.0,66771.0,0.04987297]
[1721737484685,0.67332374,66772.0,66771.0,0.04987297]
[1721737484886,0.97284974,66772.0,66771.0,0.04987297]
[1721737485881,0.96884974,66772.0,66771.0,0.04987297]
[1721737486286,0.26479693,66772.0,66771.0,0.04987297]
[1721737486459,0.11503393,66772.0,66771.0,0.25989288]
[1721737486690,0.26479693,66772.0,66771.0,0.25989288]
[1721737486905,0.20457724,66772.0,66771.0,0.25989288]
[1721737487305,0.19145687,66772.0,66771.0,0.25989288]
[1721737487714,0.19145687,66772.0,66771.0,0.26289288]
[1721737487888,0.19145687,66772.0,66771.0,0.26789288]
[1721737488096,0.43076318,66772.0,66771.0,0.26789288]
[1721737488296,0.752675,66772.0,66771.0,0.20489288]
[1721737488540,0.67525206,66772.0,66771.0,0.20489288]
[1721737488902,0.56332293,66772.0,66771.0,0.20489288]
[1721737489147,0.56332293,66772.0,66771.0,0.05787297]
[1721737489423,0.64072293,66772.0,66771.0,0.05787297]
[1721737489591,1.06089796,66772.0,66771.0,0.05287297]
[1721737489931,0.87730116,66772.0,66771.0,0.05287297]
[1721737490131,1.06489796,66772.0,66771.0,0.04987297]
[1721737490351,1.06489796,66772.0,66771.0,0.05087297]
[1721737490352,1.06089796,66772.0,66771.0,0.05087297]
[1721737490575,0.87530505,66772.0,66771.0,0.05087297]
[1721737490779,0.75465602,66772.0,66771.0,0.05087297]
[1721737490989,0.67725602,66772.0,66771.0,0.05087297]
[1721737491396,0.67725602,66772.0,66771.0,0.04987297]
[1721737491397,0.57132293,66772.0,66771.0,0.04987297]
[1721737491852,0.98578202,66772.0,66771.0,0.04987297]
[1721737492061,0.57432293,66772.0,66771.0,0.04987297]
[1721737492236,0.68625602,66772.0,66771.0,0.04987297]
[1721737492442,0.98578202,66772.0,66771.0,0.04987297]
[1721737492684,0.68625602,66772.0,66771.0,0.04987297]
[1721737492887,0.83087946,66772.0,66771.0,0.04987297]
[1721737493125,0.83091265,66772.0,66771.0,0.04987297]
[1721737493359,0.57432293,66772.0,66771.0,0.04987297]
[1721737493579,0.68628955,66772.0,66771.0,0.04987297]
[1721737493791,0.68628955,66772.0,66771.0,0.11047297]
[1721737494630,0.57432293,66772.0,66771.0,0.23490421]
[1721737494831,0.65518382,66772.0,66771.0,0.23490421]
[1721737495265,0.27479693,66772.0,66771.0,0.23490421]
[1721737495487,0.2146262,66772.0,66771.0,0.38192412]
[1721737496019,0.2126262,66772.0,66771.0,0.38192412]
[1721737496242,0.21263438,66772.0,66771.0,0.38292162]
[1721737496391,0.20363443,66772.0,66771.0,0.38192151]
[1721737496590,0.11703393,66772.0,66771.0,0.38192151]
[1721737496789,0.20663751,66772.0,66771.0,0.38592151]
[1721737497447,0.20363751,66772.0,66771.0,0.38592151]
[1721737497785,0.20363751,66772.0,66771.0,0.38792151]
[1721737498250,0.20363751,66772.0,66771.0,0.38592151]
[1721737498402,0.11403393,66772.0,66771.0,0.38592151]
[1721737498836,0.20366043,66772.0,66771.0,0.38592151]
[1721737499373,0.11403393,66772.0,66771.0,0.26149288]
[1721737499623,0.01403393,66772.0,66771.0,0.38592108]
[1721737499825,0.2052444,66772.0,66771.0,0.38592108]
[1721737500048,0.3052444,66772.0,66771.0,0.38192108]
[1721737500336,0.26752324,66772.0,66771.0,0.38192108]
[1721737500570,0.26752324,66772.0,66771.0,0.38992108]
[1721737500774,0.26752324,66772.0,66771.0,0.39692108]
[1721737500775,0.41728624,66772.0,66771.0,0.39692108]
[1721737501151,1.01633824,66772.0,66771.0,0.18930117]
[1721737501379,0.6047704,66772.0,66771.0,0.06487297]
[1721737501492,0.56332293,66772.0,66771.0,0.06487297]
[1721737502105,0.86284893,66772.0,66771.0,0.06487297]
[1721737503015,1.16237493,66772.0,66771.0,0.06487297]
[1721737503128,1.24307493,66772.0,66771.0,0.06487297]
[1721737503333,1.37758072,66772.0,66771.0,0.06487297]
[1721737503541,1.24307493,66772.0,66771.0,0.06487297]
[1721737503747,1.43557636,66772.0,66771.0,0.06487297]
[1721737504464,1.43557636,66772.0,66771.0,0.05787297]
[1721737504875,1.43857636,66772.0,66771.0,0.04987297]
[1721737505067,1.38857636,66772.0,66771.0,0.04987297]
[1721737505494,1.38557636,66772.0,66771.0,0.04987297]
[1721737505972,1.24307493,66772.0,66771.0,0.04987297]
[1721737506927,1.29707493,66772.0,66771.0,0.04987297]
[1721737507150,1.44843359,66772.0,66771.0,0.01872304]
[1721737507330,1.24707493,66772.0,66771.0,0.01872304]
[1721737507515,1.55237954,66772.0,66771.0,0.01972304]
[1721737507710,1.40103758,66772.0,66771.0,0.01972304]
[1721737508218,1.55237954,66772.0,66771.0,0.01972304]
[1721737508602,1.55243546,66772.0,66771.0,0.01972304]
[1721737509176,1.40103758,66772.0,66771.0,0.01972304]
[1721737509394,1.45103758,66772.0,66771.0,0.01972304]
[1721737510505,1.45103758,66772.0,66758.0,0.0643]
[1721737510506,0.449377,66759.0,66758.0,0.0643]
[1721737510728,0.149792,66759.0,66758.0,0.18875518]
[1721737510981,0.149792,66759.0,66758.0,0.18875491]
[1721737511199,0.449377,66759.0,66758.0,0.18875491]
[1721737511857,0.449377,66759.0,66758.0,0.0723]
[1721737511858,0.450377,66759.0,66758.0,0.0723]
[1721737512059,0.450377,66759.0,66758.0,0.19675409]
[1721737512355,0.450377,66759.0,66758.0,0.0823]
[1721737512518,0.53883376,66759.0,66758.0,0.0823]
[1721737513543,0.54822362,66759.0,66758.0,0.018]
[1721737513765,0.92300862,66759.0,66758.0,0.018]
[1721737514940,0.92300862,66759.0,66758.0,0.0628]
[1721737514941,0.98134725,66759.0,66758.0,0.0628]
[1721737515156,0.84680862,66759.0,66758.0,0.0678]
[1721737516003,0.84680862,66759.0,66758.0,0.0748]
[1721737516639,0.24763862,66759.0,66758.0,0.0748]
[1721737516848,0.1120593,66759.0,66758.0,0.29701991]
[1721737517090,0.1120593,66760.0,66758.0,0.28347007]
[1721737517276,0.299539,66770.0,66758.0,0.28347007]
[1721737517277,0.1120593,66761.0,66759.0,0.50007007]
[1721737517490,0.00925918,66763.0,66760.0,0.12445016]
[1721737517491,0.04482095,66762.0,66760.0,0.12445016]
[1721737517700,0.1120593,66767.0,66762.0,0.1426]
[1721737517701,0.04482095,66766.0,66762.0,0.1426]
[1721737517935,0.14298863,66777.0,66759.0,0.087]
[1721737517936,0.08963678,66770.0,66764.0,0.1426]
[1721737518167,0.04481822,66766.0,66765.0,0.33624555]
[1721737518802,0.16722734,66767.0,66765.0,0.33624555]
[1721737519025,0.16722734,66767.0,66766.0,0.18922564]
[1721737519225,0.16722734,66767.0,66766.0,0.33624555]
[1721737519506,0.06722734,66767.0,66766.0,0.33624555]
[1721737519743,0.22954957,66767.0,66766.0,0.33624555]
[1721737520688,0.61164523,66767.0,66766.0,0.21181991]
[1721737520955,0.72369079,66767.0,66766.0,0.21181991]
[1721737521182,0.61164523,66767.0,66766.0,0.21181991]
[1721737521647,0.61164523,66767.0,66766.0,0.22481991]
[1721737521882,0.723648,66767.0,66766.0,0.22481991]
[1721737522092,0.61164523,66767.0,66766.0,0.21181991]
[1721737522298,0.61164523,66767.0,66766.0,0.21781991]
[1721737522519,0.61164523,66767.0,66766.0,0.22981991]
[1721737523894,0.61164523,66767.0,66766.0,0.21781991]
[1721737524230,0.61164523,66767.0,66766.0,0.22281991]
[1721737524587,0.61164523,66767.0,66766.0,0.011]
[1721737524588,1.42394416,66767.0,66766.0,0.011]
[1721737524802,1.28954323,66767.0,66766.0,0.011]
[1721737525451,1.49074427,66767.0,66766.0,0.011]
[1721737525736,0.748962,66759.0,66758.0,0.0632]
[1721737526387,0.1343682,66761.0,66754.0,0.000924]
[1721737526388,0.449404,66755.0,66754.0,0.000924]
[1721737526591,0.56136427,66755.0,66754.0,0.000924]
[1721737526765,0.56136632,66755.0,66754.0,0.000924]
[1721737526938,0.53549973,66755.0,66754.0,0.061924]
[1721737527137,0.64746083,66755.0,66754.0,0.061924]
[1721737527342,0.64745718,66755.0,66754.0,0.061924]
[1721737527542,0.64745718,66755.0,66754.0,0.071924]
[1721737527912,0.64745718,66755.0,66754.0,0.010924]
[1721737527913,1.13470573,66755.0,66754.0,0.010924]
[1721737528093,1.36905467,66755.0,66754.0,0.010924]
[1721737528307,1.58430873,66755.0,66754.0,0.010924]
[1721737528525,1.53430873,66755.0,66754.0,0.010924]
[1721737528749,1.58430873,66755.0,66754.0,0.000924]
[1721737529160,1.58430873,66755.0,66754.0,0.003924]
[1721737529382,1.75170111,66755.0,66754.0,0.003]
[1721737529588,1.75170111,66755.0,66725.0,0.002794]
[1721737529589,0.149837,66739.0,66738.0,0.0631]
[1721737529802,0.83866651,66739.0,66738.0,0.0631]
[1721737530246,1.048859,66739.0,66738.0,0.0631]
[1721737530460,1.13833986,66739.0,66738.0,0.0631]
[1721737530671,1.048859,66739.0,66738.0,0.0631]
[1721737530871,1.17387809,66739.0,66738.0,0.0631]
[1721737531108,1.17387809,66739.0,66733.0,0.0783]
[1721737531109,0.749242,66734.0,66733.0,0.0783]
[1721737531351,0.81631249,66734.0,66733.0,0.22531991]
[1721737531566,0.79393331,66734.0,66733.0,0.29091991]
[1721737531764,0.749242,66734.0,66733.0,0.29091991]
[1721737532009,0.82407382,66734.0,66733.0,0.29091991]
[1721737532238,0.89114431,66734.0,66733.0,0.29091991]
[1721737532426,0.52437682,66734.0,66733.0,0.29091991]
[1721737532656,0.449545,66734.0,66733.0,0.29091991]
[1721737532849,0.450545,66734.0,66733.0,0.30391991]
[1721737533042,0.001,66734.0,66733.0,0.30391991]
[1721737533169,0.001,66734.0,66733.0,0.31591991]
[1721737533170,0.150848,66734.0,66733.0,0.31591991]
[1721737533575,0.001,66734.0,66733.0,0.31591991]
[1721737533814,0.149848,66734.0,66733.0,0.30291991]
[1721737534236,0.150848,66734.0,66733.0,0.31291991]
[1721737536762,0.450545,66734.0,66733.0,0.31291991]
[1721737536963,0.50212461,66734.0,66733.0,0.31291991]
[1721737537533,0.20242761,66734.0,66733.0,0.31291991]
[1721737537774,0.150848,66734.0,66733.0,0.31291991]
[1721737539216,0.001,66734.0,66733.0,0.31291991]
[1721737539624,0.150848,66734.0,66733.0,0.31291991]
[1721737540252,0.001,66734.0,66733.0,0.31291991]
[1721737540675,0.04460897,66748.0,66734.0,0.1397]
[1721737540880,0.13855254,66752.0,66744.0,0.0635]
[1721737540881,0.1,66749.0,66744.0,0.0635]
[1721737541088,0.1,66749.0,66746.0,0.0635]
[1721737541289,0.1,66749.0,66747.0,0.14701991]
[1721737541926,0.00947907,66750.0,66747.0,0.14701991]
[1721737542343,0.04460897,66755.0,66748.0,0.0635]
[1721737542562,0.25930426,66756.0,66749.0,0.14701991]
[1721737542769,0.15412764,66756.0,66750.0,0.0603]
[1721737542971,0.30392664,66756.0,66751.0,0.14701991]
[1721737543174,0.149801,66755.0,66751.0,0.14701991]
[1721737543378,0.149804,66754.0,66751.0,0.14701991]
[1721737543582,0.149808,66752.0,66751.0,0.14701991]
[1721737543994,0.249808,66752.0,66751.0,0.14701991]
[1721737544417,0.1,66752.0,66751.0,0.14701991]
[1721737545972,0.1,66753.0,66751.0,0.14701991]
[1721737546775,0.149808,66752.0,66751.0,0.14701991]
[1721737546954,0.28079599,66752.0,66751.0,0.14701991]
[1721737547750,0.28079599,66752.0,66750.0,0.0603]
[1721737547751,0.14981,66751.0,66750.0,0.0603]
[1721737548028,0.54943,66751.0,66750.0,0.0603]
[1721737548268,0.95965672,66751.0,66750.0,0.0603]
[1721737548679,0.66003672,66751.0,66750.0,0.0603]
[1721737548907,0.1,66751.0,66750.0,0.0603]
[1721737549164,0.1,66752.0,66751.0,0.1451]
[1721737549366,0.1,66752.0,66751.0,0.29211991]
[1721737549586,0.22626847,66756.0,66751.0,0.29211991]
[1721737549587,0.14464347,66755.0,66751.0,0.23011991]
[1721737549799,0.16068945,66761.0,66756.0,0.1433]
[1721737549800,0.04908076,66761.0,66756.0,0.1433]
[1721737550001,0.04908076,66761.0,66757.0,0.14701991]
[1721737550211,0.04908076,66761.0,66759.0,0.0664]
[1721737550442,0.04908076,66761.0,66758.0,0.20133474]
[1721737550443,0.00943514,66769.0,66761.0,0.0664]
[1721737550643,0.00943514,66769.0,66762.0,0.27145465]
[1721737550949,0.05933329,66771.0,66763.0,0.0664]
[1721737551159,0.05933329,66771.0,66764.0,0.14701991]
[1721737551361,0.149769,66770.0,66764.0,0.14701991]
[1721737551566,0.07348942,66766.0,66764.0,0.14701991]
[1721737551993,0.449337,66765.0,66764.0,0.14701991]
[1721737552193,0.299562,66764.0,66755.0,0.0819]
[1721737552411,0.07348942,66766.0,66755.0,0.0608]
[1721737552412,0.52288642,66756.0,66755.0,0.0608]
[1721737552611,0.149807,66753.0,66751.0,0.0617]
[1721737552784,0.149806,66753.0,66752.0,0.14701991]
[1721737553597,0.449418,66753.0,66752.0,0.14701991]
[1721737553804,0.51535434,66753.0,66752.0,0.14701991]
[1721737554181,0.81496634,66753.0,66752.0,0.14701991]
[1721737554371,0.82404147,66753.0,66752.0,0.14701991]
[1721737555675,0.149817,66748.0,66747.0,0.0619]
[1721737555876,0.149817,66748.0,66747.0,0.20891991]
[1721737555877,0.449451,66748.0,66747.0,0.20891991]
[1721737556984,0.83149405,66748.0,66747.0,0.0619]
[1721737557187,0.149848,66735.0,66734.0,0.067094]
[1721737557390,0.149848,66735.0,66734.0,0.21131991]
[1721737557391,0.749232,66735.0,66734.0,0.21131991]
[1721737557588,0.44954,66735.0,66734.0,0.21131991]
[1721737558213,0.86147044,66735.0,66734.0,0.21131991]
[1721737559059,0.86147044,66735.0,66734.0,0.14701991]
[1721737559237,0.449565,66731.0,66730.0,0.0653]
[1721737559563,0.749275,66731.0,66730.0,0.14701991]
[1721737559810,0.83542454,66731.0,66730.0,0.14701991]
[1721737560009,0.53571454,66731.0,66730.0,0.14701991]
[1721737560500,0.83542454,66731.0,66730.0,0.14701991]
[1721737560703,0.53571454,66731.0,66730.0,0.16101991]
[1721737560907,0.83542454,66731.0,66730.0,0.16101991]
[1721737561111,0.53571454,66731.0,66730.0,0.16101991]
[1721737561881,0.449565,66731.0,66730.0,0.16101991]
[1721737562107,0.149855,66731.0,66730.0,0.16101991]
[1721737562308,0.449565,66731.0,66730.0,0.16194391]
[1721737562972,0.749275,66731.0,66730.0,0.14794391]
[1721737563169,0.749275,66731.0,66730.0,0.14894391]
[1721737563374,0.86539654,66731.0,66730.0,0.003924]
[1721737563825,0.86539654,66731.0,66730.0,0.000924]
[1721737564032,0.86539654,66731.0,66730.0,0.001924]
[1721737564237,0.87449998,66731.0,66730.0,0.004924]
[1721737564684,0.87449998,66731.0,66730.0,0.003924]
[1721737566132,1.98371998,66731.0,66730.0,0.003924]
[1721737566271,1.98371998,66731.0,66712.0,0.000913]
[1721737566272,0.749477,66713.0,66712.0,0.000913]
[1721737566495,0.05,66725.0,66712.0,0.14793291]
[1721737566496,0.299779,66716.0,66712.0,0.14793291]
[1721737566690,0.149893,66714.0,66713.0,0.14701991]
[1721737567062,0.299779,66716.0,66713.0,0.14701991]
[1721737567268,0.44968,66714.0,66713.0,0.14701991]
[1721737567466,0.749467,66714.0,66713.0,0.14701991]
[1721737567670,0.80488808,66714.0,66713.0,0.14701991]
[1721737567873,0.20531408,66714.0,66713.0,0.15001991]
[1721737568295,0.88413559,66714.0,66713.0,0.003]
[1721737568502,0.749477,66713.0,66712.0,0.000913]
[1721737568707,1.149268,66713.0,66712.0,0.000913]
[1721737569360,0.849477,66713.0,66712.0,0.000913]
[1721737569562,0.99054234,66713.0,66712.0,0.000913]
[1721737571255,0.99054234,66713.0,66712.0,0.001913]
[1721737571668,0.69075134,66713.0,66712.0,0.001913]
[1721737571915,0.39096034,66713.0,66712.0,0.001913]
[1721737572117,0.69075134,66713.0,66712.0,0.001913]
[1721737572323,0.1,66713.0,66712.0,0.001913]
[1721737572528,0.249895,66713.0,66712.0,0.001913]
[1721737573355,0.549686,66713.0,66712.0,0.001913]
[1721737573564,0.849477,66713.0,66712.0,0.001913]
[1721737574797,0.549686,66713.0,66712.0,0.001913]
[1721737575004,0.64289489,66713.0,66712.0,0.001913]
[1721737575211,0.94268589,66713.0,66712.0,0.001913]
[1721737575623,0.64289489,66713.0,66712.0,0.001913]
[1721737575866,0.94268589,66713.0,66712.0,0.001913]
[1721737576588,0.64289489,66713.0,66712.0,0.001913]
[1721737577362,0.549686,66713.0,66712.0,0.001913]
[1721737577570,0.249895,66713.0,66712.0,0.001913]
[1721737577800,0.549686,66713.0,66712.0,0.001913]
[1721737579255,0.549686,66713.0,66712.0,0.065713]
[1721737579507,0.1,66713.0,66712.0,0.065713]
[1721737579716,0.50556614,66713.0,66712.0,0.064713]
[1721737579971,0.60556614,66713.0,66712.0,0.064713]
[1721737580301,0.60556614,66713.0,66712.0,0.066713]
[1721737580516,0.60556614,66713.0,66712.0,0.064713]
[1721737580739,0.90535714,66713.0,66712.0,0.066713]
[1721737580944,0.90535714,66713.0,66712.0,0.071713]
[1721737581150,0.90535714,66713.0,66712.0,0.069713]
[1721737582215,0.60556614,66713.0,66712.0,0.064713]
[1721737582397,0.60556614,66713.0,66712.0,0.065713]
[1721737582398,0.15588014,66713.0,66712.0,0.065713]
[1721737582632,0.30577514,66713.0,66712.0,0.065713]
[1721737582847,0.60556614,66713.0,66712.0,0.064713]
[1721737583053,0.90535714,66713.0,66712.0,0.064713]
[1721737583255,0.90535714,66713.0,66712.0,0.065713]
[1721737583730,0.30577514,66713.0,66712.0,0.065713]
[1721737583939,0.60556614,66713.0,66712.0,0.065713]
[1721737584178,0.60556614,66713.0,66712.0,0.064713]
[1721737584389,0.60556614,66713.0,66712.0,0.065713]
[1721737585014,0.90535714,66713.0,66712.0,0.065713]
[1721737585220,0.90535714,66713.0,66712.0,0.001913]
[1721737585859,0.90535714,66713.0,66712.0,0.000913]
[1721737586471,0.90535714,66713.0,66712.0,0.003913]
[1721737587331,0.90535714,66713.0,66712.0,0.000913]
[1721737587887,1.20514814,66713.0,66712.0,0.002913]
[1721737601397,0.90535714,66713.0,66712.0,0.002913]
[1721737601604,0.249895,66713.0,66712.0,0.145213]
[1721737601818,0.549686,66713.0,66712.0,0.145213]
[1721737602238,0.249895,66713.0,66712.0,0.26975976]
[1721737602449,0.63554604,66713.0,66712.0,0.26975976]
[1721737602597,0.18586004,66713.0,66712.0,0.26975976]
[1721737602804,0.02579,66724.0,66717.0,0.061]
[1721737603017,0.09367178,66726.0,66719.0,0.061]
[1721737603018,0.04907745,66726.0,66719.0,0.061]
[1721737603218,0.07655823,66726.0,66721.0,0.061]
[1721737603394,0.19894445,66726.0,66723.0,0.061]
[1721737603758,0.79840945,66726.0,66725.0,0.065]
[1721737603919,0.8077149,66726.0,66725.0,0.065]
[1721737604255,1.05837045,66726.0,66725.0,0.065]
[1721737604455,1.28316859,66726.0,66725.0,0.065]
[1721737604704,0.98443559,66726.0,66725.0,0.065]
[1721737605539,1.28416859,66726.0,66725.0,0.065]
[1721737605737,1.28416859,66726.0,66712.0,0.004913]
[1721737605738,0.149875,66722.0,66721.0,0.0625]
[1721737605958,0.50073968,66722.0,66721.0,0.0625]
[1721737606166,0.60073968,66722.0,66721.0,0.0625]
[1721737606376,0.90049068,66722.0,66721.0,0.0625]
[1721737607349,0.94518637,66722.0,66721.0,0.0625]
[1721737608219,0.90049068,66722.0,66721.0,0.0625]
[1721737608625,0.94519135,66722.0,66721.0,0.0625]
[1721737609045,0.90049068,66722.0,66721.0,0.0625]
[1721737609573,0.90049068,66722.0,66721.0,0.0655]
[1721737610228,0.94519135,66722.0,66721.0,0.0665]
[1721737610436,1.20024168,66722.0,66721.0,0.0665]
[1721737610643,0.98990469,66722.0,66721.0,0.0665]
[1721737610850,0.90049068,66722.0,66721.0,0.0665]
[1721737611187,1.01226278,66722.0,66721.0,0.0665]
[1721737611470,0.90049068,66722.0,66721.0,0.0665]
[1721737612097,0.9739801,66722.0,66721.0,0.004]
[1721737612413,1.2737311,66722.0,66721.0,0.004]
[1721737613369,1.2737311,66722.0,66719.0,0.0796]
[1721737613370,0.44964,66720.0,66719.0,0.0796]
[1721737613573,0.24988,66720.0,66719.0,0.22661991]
[1721737613777,0.1,66720.0,66719.0,0.22661991]
[1721737613977,0.18945316,66720.0,66719.0,0.29051991]
[1721737614178,0.1,66720.0,66719.0,0.29051991]
[1721737614566,0.06709419,66721.0,66720.0,0.0639]
[1721737614768,0.06709419,66721.0,66720.0,0.21091991]
[1721737615174,0.16709419,66722.0,66720.0,0.22661991]
[1721737615375,0.06709419,66722.0,66721.0,0.21091991]
[1721737616029,0.06709419,66722.0,66721.0,0.29051991]
[1721737616890,0.04472217,66724.0,66721.0,0.27153792]
[1721737617117,0.04472217,66726.0,66722.0,0.27453527]
[1721737617365,0.04472217,66726.0,66717.0,0.29977]
[1721737617366,0.04472217,66731.0,66726.0,0.1435]
[1721737617571,0.04472217,66736.0,66730.0,0.14701991]
[1721737617795,0.09385969,66739.0,66732.0,0.0639]
[1721737617992,0.09385969,66739.0,66734.0,0.0639]
[1721737618204,0.04913752,66739.0,66736.0,0.0639]
[1721737618404,0.04472217,66741.0,66737.0,0.14981391]
[1721737618718,0.04472217,66741.0,66738.0,0.0639]
[1721737618922,0.04472217,66741.0,66739.0,0.14701991]
[1721737619122,0.1,66742.0,66739.0,0.14701991]
[1721737619123,0.14472217,66742.0,66739.0,0.14701991]
[1721737619775,0.14466731,66742.0,66739.0,0.14701991]
[1721737620233,0.1,66742.0,66739.0,0.14701991]
[1721737620433,0.17596175,66742.0,66739.0,0.14701991]
[1721737620641,0.449505,66740.0,66739.0,0.14701991]
[1721737620813,0.07348942,66741.0,66738.0,0.0639]
[1721737620814,0.149837,66739.0,66738.0,0.0639]
[1721737621027,0.149835,66740.0,66739.0,0.01]
[1721737621228,0.52542897,66740.0,66739.0,0.01]
[1721737621982,0.149837,66739.0,66738.0,0.21091991]
[1721737622598,0.14466731,66742.0,66738.0,0.21091991]
[1721737622806,0.1,66743.0,66739.0,0.14701991]
[1721737623014,0.00913762,66744.0,66740.0,0.075]
[1721737623015,0.10913762,66744.0,66740.0,0.075]
[1721737623223,0.10913762,66744.0,66741.0,0.14701991]
[1721737623224,0.1,66744.0,66741.0,0.14701991]
[1721737623438,0.249826,66744.0,66742.0,0.0635]
[1721737623651,0.249826,66744.0,66743.0,0.14701991]
[1721737624676,0.1,66744.0,66743.0,0.14701991]